Workbook

Sheet Sheet1
A1: 拟进入体检人员名单
A2: 序号 | B2: 姓名 | C2: 准考证号 | D2: 岗位代码 | E2: 笔试原始成绩 | F2: 加分 | G2: 笔试成绩 | H2: 面试原始成绩 | I2: 加权系数 | J2: 面试成绩 | K2: 考试成绩
A3: 1 | B3: 王秋月 | C3: 10216012930 | D3: 601010122 | E3: 84.17 | G3: 84.17 | H3: 83.06 | J3: 83.06 | K3: =G3*0.5+H3*0.5 -> 83.62
A4: 2 | B4: 张敏 | C4: 10216044116 | D4: 601010122 | E4: 83.23 | G4: 83.23 | H4: 83.68 | J4: 83.68 | K4: =G4*0.5+H4*0.5 -> 83.46
A5: 3 | B5: 林庭梦 | C5: 10216032806 | D5: 601010122 | E5: 83.45 | G5: 83.45 | H5: 80.34 | J5: 80.34 | K5: =G5*0.5+H5*0.5 -> 81.90
A6: 4 | B6: 许道敏 | C6: 10216011711 | D6: 601010122 | E6: 82.27 | G6: 82.27 | H6: 80.54 | J6: 80.54 | K6: =G6*0.5+H6*0.5 -> 81.41
A7: 5 | B7: 冯妍杰 | C7: 10216010824 | D7: 601010122 | E7: 81.55 | G7: 81.55 | H7: 81.16 | J7: 81.16 | K7: =G7*0.5+H7*0.5 -> 81.36
A8: 1 | B8: 熊云云 | C8: 10216022102 | D8: 601010222 | E8: 82.97 | G8: 82.97 | H8: 82.62 | J8: 82.62 | K8: =G8*0.5+J8*0.5 -> 82.80
A9: 2 | B9: 刘芳 | C9: 10216044303 | D9: 601010222 | E9: 82.38 | G9: 82.38 | H9: 82.72 | J9: 82.72 | K9: 82.55
A10: 3 | B10: 吴思 | C10: 10216042508 | D10: 601010222 | E10: 81.31 | G10: 81.31 | H10: 80.96 | J10: 80.96 | K10: 81.14
A11: 4 | B11: 黄烙 | C11: 10216044006 | D11: 601010222 | E11: 82.27 | G11: 82.27 | H11: 79.54 | J11: 79.54 | K11: 80.91
A12: 5 | B12: 李蓉玉 | C12: 10216032713 | D12: 601010222 | E12: 83.19 | G12: 83.19 | H12: 78.48 | J12: 78.48 | K12: 80.84
A13: 6 | B13: 杨俊杰 | C13: 10216011125 | D13: 601010222 | E13: 81.66 | G13: 81.66 | H13: 79.26 | J13: 79.26 | K13: 80.46
A14: 7 | B14: 陈晓娟 | C14: 10216022105 | D14: 601010222 | E14: 78.69 | G14: 78.69 | H14: 81.20 | J14: 81.20 | K14: 79.95
A15: 8 | B15: 王亚琦 | C15: 10216022020 | D15: 601010222 | E15: 79.65 | G15: 79.65 | H15: 79.84 | J15: 79.84 | K15: 79.75
A16: 9 | B16: 张栋 | C16: 10216031804 | D16: 601010222 | E16: 80.02 | G16: 80.02 | H16: 78.58 | J16: 78.58 | K16: 79.30
A17: 10 | B17: 刘亚敏 | C17: 10216042504 | D17: 601010222 | E17: 74.41 | G17: 74.41 | H17: 83.32 | J17: 83.32 | K17: 78.87
A18: 11 | B18: 高可欣 | C18: 10216041810 | D18: 601010222 | E18: 75.94 | G18: 75.94 | H18: 81.38 | J18: 81.38 | K18: 78.66
A19: 12 | B19: 李孟莹 | C19: 10216031012 | D19: 601010222 | E19: 77.47 | G19: 77.47 | H19: 79.54 | J19: 79.54 | K19: 78.51
A20: 13 | B20: 王经经 | C20: 10216040828 | D20: 601010222 | E20: 78.08 | G20: 78.08 | H20: 78.48 | J20: 78.48 | K20: 78.28
A21: 1 | B21: 毛文娴 | C21: 10216021930 | D21: 601010322 | E21: 85.59 | G21: 85.59 | H21: 83.02 | J21: 83.02 | K21: =G21*0.5+H21*0.5 -> 84.31
A22: 2 | B22: 李婷婷 | C22: 10216010405 | D22: 601010322 | E22: 83.80 | G22: 83.80 | H22: 82.72 | J22: 82.72 | K22: 83.26
A23: 3 | B23: 陶亚兰 | C23: 10216023812 | D23: 601010322 | E23: 85.24 | G23: 85.24 | H23: 79.94 | J23: 79.94 | K23: 82.59
A24: 4 | B24: 文晓丽 | C24: 10216021914 | D24: 601010322 | E24: 85.94 | G24: 85.94 | H24: 78.88 | J24: 78.88 | K24: 82.41
A25: 5 | B25: 邝于杰 | C25: 10216021915 | D25: 601010322 | E25: 82.25 | G25: 82.25 | H25: 82.42 | J25: 82.42 | K25: 82.34
A26: 6 | B26: 张晶晶 | C26: 10216010226 | D26: 601010322 | E26: 85.83 | G26: 85.83 | H26: 78.16 | J26: 78.16 | K26: 82.00
A27: 7 | B27: 余佩佩 | C27: 10216020211 | D27: 601010322 | E27: 85.00 | G27: 85.00 | H27: 78.34 | J27: 78.34 | K27: 81.67
A28: 1 | B28: 夏丹丹 | C28: 10216042303 | D28: 601010422 | E28: 82.73 | G28: 82.73 | H28: 83.04 | J28: 83.04 | K28: =G28*0.5+J28*0.5 -> 82.89
A29: 2 | B29: 汪子馨 | C29: 10216020507 | D29: 601010422 | E29: 81.66 | G29: 81.66 | H29: 83.06 | J29: 83.06 | K29: 82.36
A30: 3 | B30: 王静如 | C30: 10216022619 | D30: 601010422 | E30: 82.62 | G30: 82.62 | H30: 81.34 | J30: 81.34 | K30: 81.98
A31: 4 | B31: 余洪波 | C31: 10216043124 | D31: 601010422 | E31: 79.74 | G31: 79.74 | H31: 81.82 | J31: 81.82 | K31: 80.78
A32: 5 | B32: 陈俊 | C32: 10216012130 | D32: 601010422 | E32: 77.01 | G32: 77.01 | H32: 83.50 | J32: 83.50 | K32: 80.26
A33: 6 | B33: 张业辉 | C33: 10216013203 | D33: 601010422 | E33: 79.06 | G33: 79.06 | H33: 81.36 | J33: 81.36 | K33: 80.21
A34: 7 | B34: 陈炳旭 | C34: 10216020302 | D34: 601010422 | E34: 80.68 | G34: 80.68 | H34: 79.22 | J34: 79.22 | K34: 79.95
A35: 8 | B35: 曾丽 | C35: 10216022213 | D35: 601010422 | E35: 76.42 | G35: 76.42 | H35: 83.40 | J35: 83.40 | K35: 79.91
A36: 9 | B36: 李梦娅 | C36: 10216040720 | D36: 601010422 | E36: 77.03 | G36: 77.03 | H36: 82.24 | J36: 82.24 | K36: 79.64
A37: 10 | B37: 徐双 | C37: 10216020327 | D37: 601010422 | E37: 78.08 | G37: 78.08 | H37: 81.18 | J37: 81.18 | K37: 79.63
A38: 11 | B38: 牛晓瑜 | C38: 10216023813 | D38: 601010422 | E38: 76.51 | G38: 76.51 | H38: 82.44 | J38: 82.44 | K38: 79.48
A39: 12 | B39: 吴德生 | C39: 10216011716 | D39: 601010422 | E39: 75.70 | G39: 75.70 | H39: 81.40 | J39: 81.40 | K39: 78.55
A40: 1 | B40: 吴凌云 | C40: 10216031726 | D40: 601010522 | E40: 80.24 | G40: 80.24 | H40: 79.76 | J40: 79.76 | K40: =G40*0.5+H40*0.5 -> 80.00
A41: 2 | B41: 沈晓祺 | C41: 10216012522 | D41: 601010522 | E41: 80.72 | G41: 80.72 | H41: 79.00 | J41: 79.00 | K41: 79.86
A42: 3 | B42: 李玉珍 | C42: 10216021815 | D42: 601010522 | E42: 77.73 | G42: 77.73 | H42: 81.84 | J42: 81.84 | K42: 79.79
A43: 4 | B43: 李庆梅 | C43: 10216040401 | D43: 601010522 | E43: 78.21 | G43: 78.21 | H43: 81.22 | J43: 81.22 | K43: 79.72
A44: 5 | B44: 张玉雪 | C44: 10216011016 | D44: 601010522 | E44: 77.51 | G44: 77.51 | H44: 81.22 | J44: 81.22 | K44: 79.37
A45: 6 | B45: 刘梅园 | C45: 10216011606 | D45: 601010522 | E45: 79.91 | G45: 79.91 | H45: 78.80 | J45: 78.80 | K45: 79.36
A46: 7 | B46: 易智明 | C46: 10216041823 | D46: 601010522 | E46: 79.63 | G46: 79.63 | H46: 78.94 | J46: 78.94 | K46: 79.29
A47: 1 | B47: 张柯 | C47: 10216045524 | D47: 601010622 | E47: 85.00 | G47: 85.00 | H47: 79.40 | J47: 79.40 | K47: =G47*0.5+J47*0.5 -> 82.20
A48: 2 | B48: 陈煜 | C48: 10216030412 | D48: 601010622 | E48: 82.38 | G48: 82.38 | H48: 81.00 | J48: 81.00 | K48: =G48*0.5+J48*0.5 -> 81.69
A49: 3 | B49: 张佳欣 | C49: 10216012515 | D49: 601010622 | E49: 80.70 | G49: 80.70 | H49: 82.40 | J49: 82.40 | K49: =G49*0.5+J49*0.5 -> 81.55
A50: 1 | B50: 赵晶莹 | C50: 10216041202 | D50: 601010722 | E50: 84.89 | G50: 84.89 | H50: 79.96 | J50: 79.96 | K50: =G50*0.5+J50*0.5 -> 82.43
A51: 2 | B51: 林兴磊 | C51: 10216031913 | D51: 601010722 | E51: 80.48 | G51: 80.48 | H51: 82.24 | J51: 82.24 | K51: =G51*0.5+J51*0.5 -> 81.36
A52: 1 | B52: 付曹 | C52: 10216012825 | D52: 601010822 | E52: 79.17 | G52: 79.17 | H52: 80.90 | J52: 80.90 | K52: =G52*0.5+J52*0.5 -> 80.04
A53: 2 | B53: 龚京豫 | C53: 10216041626 | D53: 601010822 | E53: 79.63 | G53: 79.63 | H53: 79.94 | J53: 79.94 | K53: =G53*0.5+J53*0.5 -> 79.79
A54: 3 | B54: 李小雨 | C54: 10216010120 | D54: 601010822 | E54: 79.85 | G54: 79.85 | H54: 78.52 | J54: 78.52 | K54: =G54*0.5+J54*0.5 -> 79.19
A55: 1 | B55: 黄雅琪 | C55: 10216020307 | D55: 601010922 | E55: 80.35 | G55: 80.35 | H55: 82.50 | J55: 82.50 | K55: =G55*0.5+J55*0.5 -> 81.43
A56: 2 | B56: 许倩 | C56: 10216043712 | D56: 601010922 | E56: 81.66 | G56: 81.66 | H56: 80.72 | J56: 80.72 | K56: =G56*0.5+J56*0.5 -> 81.19
A57: 1 | B57: 裴静 | C57: 10216045529 | D57: 601011022 | E57: 82.97 | G57: 82.97 | H57: 78.32 | J57: 78.32 | K57: =G57*0.5+J57*0.5 -> 80.65
A58: 2 | B58: 魏刚 | C58: 10216010602 | D58: 601011022 | E58: 77.01 | G58: 77.01 | H58: 79.90 | J58: 79.90 | K58: 78.46
A59: 3 | B59: 邬梦想 | C59: 10216042325 | D59: 601011022 | E59: 74.54 | G59: 74.54 | H59: 81.58 | J59: 81.58 | K59: 78.06
A60: 4 | B60: 王萍 | C60: 10216043525 | D60: 601011022 | E60: 76.79 | G60: 76.79 | H60: 79.08 | J60: 79.08 | K60: 77.94
A61: 5 | B61: 叶先森 | C61: 10216033029 | D61: 601011022 | E61: 74.52 | G61: 74.52 | H61: 81.30 | J61: 81.30 | K61: 77.91
A62: 6 | B62: 罗凤燕 | C62: 10216032802 | D62: 601011022 | E62: 73.93 | G62: 73.93 | H62: 79.92 | J62: 79.92 | K62: 76.93
A63: 7 | B63: 王铭心 | C63: 10216042718 | D63: 601011022 | E63: 75.22 | G63: 75.22 | H63: 78.50 | J63: 78.50 | K63: 76.86
A64: 8 | B64: 邱春 | C64: 10216040725 | D64: 601011022 | E64: 72.49 | G64: 72.49 | H64: 79.72 | J64: 79.72 | K64: 76.11
A65: 9 | B65: 吕术朝 | C65: 10216022121 | D65: 601011022 | E65: 70.48 | G65: 70.48 | H65: 81.68 | J65: 81.68 | K65: 76.08
A66: 10 | B66: 张向茶 | C66: 10216023429 | D66: 601011022 | E66: 72.71 | G66: 72.71 | H66: 78.32 | J66: 78.32 | K66: 75.52
A67: 1 | B67: 毛盼 | C67: 10216020611 | D67: 601011122 | E67: 77.71 | G67: 77.71 | H67: 82.00 | J67: 82.00 | K67: =G67*0.5+J67*0.5 -> 79.86
A68: 1 | B68: 张家杰 | C68: 10216011405 | D68: 601011222 | E68: 83.80 | G68: 83.80 | H68: 78.86 | J68: 78.86 | K68: =G68*0.5+J68*0.5 -> 81.33
A69: 1 | B69: 袁慧 | C69: 10216031111 | D69: 601011322 | E69: 79.76 | G69: 79.76 | H69: 80.00 | J69: 80.00 | K69: =G69*0.5+J69*0.5 -> 79.88
A70: 1 | B70: 吴亭亭 | C70: 10216013222 | D70: 601011422 | E70: 86.42 | G70: 86.42 | H70: 81.62 | J70: 81.62 | K70: =G70*0.5+H70*0.5 -> 84.02
A71: 1 | B71: 张甜甜 | C71: 10216020120 | D71: 601020122 | E71: 86.79 | G71: 86.79 | H71: 81.06 | I71: 0.9940 | J71: =H71*I71 -> 80.57 | K71: =G71*0.5+J71*0.5 -> 83.68
A72: 2 | B72: 陈幸 | C72: 10216044610 | D72: 601020122 | E72: 82.29 | G72: 82.29 | H72: 82.28 | I72: 1.0062 | J72: 82.79 | K72: 82.54
A73: 3 | B73: 周亚奇 | C73: 10216041015 | D73: 601020122 | E73: 80.70 | G73: 80.70 | H73: 82.42 | I73: 1.0062 | J73: 82.93 | K73: 81.82
A74: 4 | B74: 曾庆荣 | C74: 10216021306 | D74: 601020122 | E74: 81.53 | G74: 81.53 | H74: 82.28 | I74: 0.9940 | J74: 81.79 | K74: 81.66
A75: 5 | B75: 邹玲 | C75: 10216042528 | D75: 601020122 | E75: 81.31 | G75: 81.31 | H75: 81.28 | I75: 1.0062 | J75: 81.78 | K75: 81.55
A76: 6 | B76: 上官林想 | C76: 10216030303 | D76: 601020122 | E76: 80.96 | G76: 80.96 | H76: 82.44 | I76: 0.9940 | J76: 81.95 | K76: 81.45
A77: 7 | B77: 李悦悦 | C77: 10216031820 | D77: 601020122 | E77: 78.80 | G77: 78.80 | H77: 83.42 | I77: 1.0062 | J77: 83.94 | K77: 81.37
A78: 8 | B78: 吴秋悦 | C78: 10216032529 | D78: 601020122 | E78: 80.00 | G78: 80.00 | H78: 81.74 | I78: 1.0062 | J78: 82.25 | K78: 81.12
A79: 9 | B79: 陈亚笛 | C79: 10216011622 | D79: 601020122 | E79: 79.76 | G79: 79.76 | H79: 82.62 | I79: 0.9940 | J79: 82.12 | K79: 80.94
A80: 10 | B80: 林倩 | C80: 10216022930 | D80: 601020122 | E80: 78.91 | G80: 78.91 | H80: 83.34 | I80: 0.9940 | J80: 82.84 | K80: 80.87
A81: 11 | B81: 陈星宇 | C81: 10216022425 | D81: 601020122 | E81: 79.26 | G81: 79.26 | H81: 82.80 | I81: 0.9940 | J81: 82.30 | K81: 80.78
A82: 12 | B82: 张星月 | C82: 10216021312 | D82: 601020122 | E82: 79.04 | G82: 79.04 | H82: 82.98 | I82: 0.9940 | J82: 82.48 | K82: 80.76
A83: 13 | B83: 张倩 | C83: 10216021518 | D83: 601020122 | E83: 79.76 | G83: 79.76 | H83: 81.86 | I83: 0.9940 | J83: 81.37 | K83: 80.56
A84: 14 | B84: 胡晶晶 | C84: 10216031506 | D84: 601020122 | E84: 77.84 | G84: 77.84 | H84: 82.42 | I84: 1.0062 | J84: 82.93 | K84: 80.39
A85: 15 | B85: 陈建兰 | C85: 10216010317 | D85: 601020122 | E85: 79.74 | G85: 79.74 | H85: 80.86 | I85: 0.9940 | J85: 80.37 | K85: 80.06
A86: 16 | B86: 冯颖荷 | C86: 10216031604 | D86: 601020122 | E86: 82.49 | G86: 82.49 | H86: 77.10 | I86: 1.0062 | J86: 77.58 | K86: 80.03
A87: 17 | B87: 王秀秀 | C87: 10216042229 | D87: 601020122 | E87: 79.28 | G87: 79.28 | H87: 80.12 | I87: 1.0062 | J87: 80.62 | K87: 79.95
A88: 18 | B88: 田萌 | C88: 10216045504 | D88: 601020122 | E88: 79.39 | G88: 79.39 | H88: 79.80 | I88: 1.0062 | J88: 80.29 | K88: 79.84
A89: 19 | B89: 张芝娇 | C89: 10216042029 | D89: 601020122 | E89: 82.60 | G89: 82.60 | H89: 76.30 | I89: 1.0062 | J89: 76.77 | K89: 79.69
A90: 20 | B90: 梅冰清 | C90: 10216032907 | D90: 601020122 | E90: 78.08 | G90: 78.08 | H90: 80.74 | I90: 1.0062 | J90: 81.24 | K90: 79.66
A91: 21 | B91: 李莹莹 | C91: 10216011804 | D91: 601020122 | E91: 81.29 | G91: 81.29 | H91: 78.50 | I91: 0.9940 | J91: 78.03 | K91: 79.66
A92: 22 | B92: 李玉梅 | C92: 10216011628 | D92: 601020122 | E92: 77.01 | G92: 77.01 | H92: 82.76 | I92: 0.9940 | J92: 82.26 | K92: 79.64
A93: 23 | B93: 李特 | C93: 10216043528 | D93: 601020122 | E93: 75.83 | G93: 75.83 | H93: 82.80 | I93: 1.0062 | J93: 83.31 | K93: 79.57
A94: 24 | B94: 黄凯欣 | C94: 10216041909 | D94: 601020122 | E94: 78.93 | G94: 78.93 | H94: 79.52 | I94: 1.0062 | J94: 80.01 | K94: 79.47
A95: 25 | B95: 李静漪 | C95: 10216012020 | D95: 601020122 | E95: 77.64 | G95: 77.64 | H95: 81.58 | I95: 0.9940 | J95: 81.09 | K95: 79.37
A96: 26 | B96: 杨其波 | C96: 10216011328 | D96: 601020122 | E96: 78.43 | G96: 78.43 | H96: 80.62 | I96: 0.9940 | J96: 80.14 | K96: 79.28
A97: 27 | B97: 李佳佳 | C97: 10216030514 | D97: 601020122 | E97: 77.88 | G97: 77.88 | H97: 81.16 | I97: 0.9940 | J97: 80.67 | K97: 79.28
A98: 28 | B98: 涂明霞 | C98: 10216023102 | D98: 601020122 | E98: 77.14 | G98: 77.14 | H98: 81.86 | I98: 0.9940 | J98: 81.37 | K98: 79.25
A99: 29 | B99: 胡奥兰 | C99: 10216042919 | D99: 601020122 | E99: 75.81 | G99: 75.81 | H99: 82.10 | I99: 1.0062 | J99: 82.61 | K99: 79.21
A100: 30 | B100: 李玉娟 | C100: 10216042112 | D100: 601020122 | E100: 76.07 | G100: 76.07 | H100: 81.84 | I100: 1.0062 | J100: 82.35 | K100: 79.21
